bitfinex/quotes_BTCUSD_20240607
["timestamp","ask_amount","ask_price","bid_price","bid_amount"]
[1717796406458,0.20993325,69311.0,69310.0,0.55558959]
[1717796407031,0.20993325,69311.0,69310.0,0.69986859]
[1717796407438,0.20993325,69311.0,69310.0,0.77738545]
[1717796409411,0.20993325,69311.0,69310.0,0.69986859]
[1717796409819,0.33981662,69311.0,69310.0,0.69986859]
[1717796410866,0.20993325,69311.0,69310.0,0.69986859]
[1717796411140,0.33982068,69311.0,69310.0,0.69986859]
[1717796411984,0.20993325,69311.0,69310.0,0.69986859]
[1717796412402,0.33982068,69311.0,69310.0,0.69986859]
[1717796413022,0.33983094,69311.0,69310.0,0.69986859]
[1717796413238,0.20993325,69311.0,69310.0,0.69986859]
[1717796414682,0.33984277,69311.0,69310.0,0.69986859]
[1717796416021,0.20993325,69311.0,69310.0,0.69986859]
[1717796416267,0.20993325,69311.0,69310.0,0.77516859]
[1717796416699,0.20073812,69311.0,69310.0,0.77516859]
[1717796417144,0.20073812,69311.0,69310.0,0.70596859]
[1717796417357,0.20881332,69311.0,69310.0,0.77516859]
[1717796418008,0.19581332,69311.0,69310.0,0.77416859]
[1717796418191,0.18381332,69311.0,69310.0,0.77316859]
[1717796418341,0.19481332,69311.0,69310.0,0.8102066]
[1717796418803,0.09481332,69311.0,69310.0,0.8102066]
[1717796419013,0.20303623,69311.0,69310.0,0.8102066]
[1717796419486,0.09481332,69311.0,69310.0,0.8102066]
[1717796420617,0.09481332,69311.0,69310.0,0.7410066]
[1717796420841,0.08673812,69311.0,69310.0,0.8102066]
[1717796421279,0.08673812,69311.0,69310.0,0.70496859]
[1717796421485,0.08673812,69311.0,69310.0,0.77416859]
[1717796421690,0.09414714,69311.0,69310.0,0.70496859]
[1717796421900,0.20237005,69311.0,69310.0,0.77416859]
[1717796422106,0.20237005,69311.0,69310.0,0.85158545]
[1717796422306,0.19496103,69311.0,69310.0,0.85158545]
[1717796422543,0.20237383,69311.0,69310.0,0.85158545]
[1717796422956,0.19496103,69311.0,69310.0,0.85158545]
[1717796423356,0.19495133,69311.0,69310.0,0.85157109]
[1717796424187,0.08672842,69311.0,69310.0,0.85157109]
[1717796425871,0.17325996,69311.0,69310.0,0.85157109]
[1717796426293,0.09414593,69311.0,69310.0,0.85157109]
[1717796426631,0.08672842,69311.0,69310.0,0.85157109]
[1717796427930,0.1732567,69311.0,69310.0,0.85157109]
[1717796428351,0.1806897,69311.0,69310.0,0.85157109]
[1717796428554,0.18068745,69311.0,69310.0,0.85157109]
[1717796430430,0.09416142,69311.0,69310.0,0.85157109]
[1717796430597,0.18068379,69311.0,69310.0,0.85157109]
[1717796432343,0.18068379,69311.0,69310.0,0.85147109]
[1717796433174,0.1806793,69311.0,69310.0,0.85147109]
[1717796434157,0.09416142,69311.0,69310.0,0.85147109]
[1717796440171,0.09416142,69311.0,69310.0,1.14002909]
[1717796440561,0.08672842,69311.0,69310.0,1.34002909]
[1717796441331,0.09512345,69311.0,69310.0,1.34002909]
[1717796443161,0.09512345,69311.0,69310.0,1.07092909]
[1717796443386,0.09512345,69311.0,69310.0,1.14002909]
[1717796444369,0.18164011,69311.0,69310.0,1.14002909]
[1717796444852,0.17324508,69311.0,69310.0,1.14002909]
[1717796445267,0.09512451,69311.0,69310.0,1.14002909]
[1717796446794,0.09512451,69311.0,69310.0,1.06261223]
[1717796447775,0.09512451,69311.0,69310.0,1.26261223]
[1717796447979,0.09512451,69311.0,69310.0,1.08561223]
[1717796448767,0.17064117,69311.0,69310.0,1.08461223]
[1717796449006,0.17964117,69311.0,69310.0,1.08561223]
[1717796449166,0.17964117,69311.0,69310.0,1.21633698]
[1717796449367,0.17664117,69311.0,69310.0,1.14723698]
[1717796449566,0.17064117,69311.0,69310.0,1.21833278]
[1717796450215,0.08412451,69311.0,69310.0,1.21833278]
[1717796450416,0.17064117,69311.0,69310.0,1.21833278]
[1717796455373,0.08412451,69311.0,69310.0,1.41833278]
[1717796455800,0.07572842,69311.0,69310.0,1.41833278]
[1717796455996,0.07572842,69311.0,69310.0,1.21833278]
[1717796456698,0.07572842,69311.0,69310.0,1.41833278]
[1717796457158,0.07572842,69311.0,69310.0,1.21833278]
[1717796458042,0.07572842,69311.0,69310.0,1.41833278]
[1717796459064,0.07572623,69311.0,69310.0,1.41833278]
[1717796459275,0.18387205,69311.0,69310.0,1.41833278]
[1717796459676,0.18387205,69311.0,69310.0,1.21833278]
[1717796460097,0.18387213,69311.0,69310.0,1.21833278]
[1717796460663,0.19226544,69311.0,69310.0,1.06860014]
[1717796460985,0.19226544,69311.0,69310.0,1.41833276]
[1717796461459,0.08411962,69311.0,69310.0,1.41833276]
[1717796461794,0.07572631,69311.0,69310.0,1.41833276]
[1717796462021,0.08411833,69311.0,69310.0,1.41833276]
[1717796462358,0.19239577,69311.0,69310.0,1.41833276]
[1717796462552,0.19239577,69311.0,69310.0,1.59548031]
[1717796462756,0.19239577,69311.0,69310.0,1.66458031]
[1717796462986,0.07572631,69311.0,69310.0,1.66458031]
[1717796463215,0.07572631,69311.0,69310.0,1.6429287]
[1717796463651,0.14069108,69311.0,69310.0,1.6429287]
[1717796464090,0.1490831,69311.0,69310.0,1.6429287]
[1717796464536,0.08411833,69311.0,69310.0,1.6429287]
[1717796464657,0.1490739,69311.0,69310.0,1.6429287]
[1717796466282,0.0841131,69311.0,69310.0,1.64290557]
[1717796468505,0.0841131,69311.0,69310.0,1.63990557]
[1717796468707,0.0841131,69311.0,69310.0,1.64490557]
[1717796469116,0.0841131,69311.0,69310.0,1.57580557]
[1717796469356,0.0841131,69311.0,69310.0,1.64490557]
[1717796470331,0.12739935,69311.0,69310.0,1.64490557]
[1717796472271,0.0841131,69311.0,69310.0,1.64490557]
[1717796472471,0.0841131,69311.0,69310.0,1.51145396]
[1717796473395,0.12739572,69311.0,69310.0,1.51145396]
[1717796474471,0.12739572,69311.0,69310.0,1.80001196]
[1717796478285,0.0841131,69311.0,69310.0,1.80001196]
[1717796480247,0.07572108,69311.0,69310.0,1.80000391]
[1717796480453,0.07572108,69311.0,69310.0,1.94512178]
[1717796481674,0.07572108,69311.0,69310.0,1.94112178]
[1717796482052,0.07572108,69311.0,69310.0,1.94712178]
[1717796482374,0.07572108,69311.0,69310.0,1.94012178]
[1717796482506,0.07672108,69311.0,69310.0,1.95012178]
[1717796483130,0.07672108,69311.0,69310.0,1.80400391]
[1717796483360,0.07772108,69311.0,69310.0,1.81000391]
[1717796485753,0.07772108,69311.0,69310.0,1.58542548]
[1717796491429,0.07771801,69311.0,69310.0,1.58542548]
[1717796493988,0.07771801,69311.0,69310.0,1.43570653]
[1717796494224,0.07771801,69311.0,69310.0,1.7305416]
[1717796495579,0.07771801,69311.0,69310.0,1.58542373]
[1717796502140,0.00286,69311.0,69310.0,1.58542373]
[1717796502373,0.0777186,69311.0,69310.0,1.58542373]
[1717796505666,0.0777186,69311.0,69310.0,1.51632373]
[1717796505891,0.0777186,69311.0,69310.0,1.58542373]
[1717796506676,0.0777186,69311.0,69310.0,1.7305416]
[1717796507278,0.07771802,69311.0,69310.0,1.5808244]
[1717796507487,0.07771802,69311.0,69310.0,1.58542258]
[1717796507843,0.08463306,69311.0,69310.0,1.58542258]
[1717796508460,0.07771802,69311.0,69310.0,1.58542258]
[1717796510361,0.0777181,69311.0,69310.0,1.58542274]
[1717796512776,0.00286,69311.0,69310.0,1.58542274]
[1717796512978,0.07771827,69311.0,69310.0,1.58542274]
[1717796513178,0.07771827,69311.0,69310.0,1.73054061]
[1717796516871,0.07771826,69311.0,69310.0,1.73054061]
[1717796518759,0.0846333,69311.0,69310.0,1.73054061]
[1717796518964,0.0846333,69311.0,69310.0,1.58542274]
[1717796519284,0.07771826,69311.0,69310.0,1.58542274]
[1717796519457,0.0846333,69311.0,69310.0,1.58542274]
[1717796521056,0.0846333,69311.0,69310.0,1.60708307]
[1717796521266,0.1279214,69311.0,69310.0,1.60708307]
[1717796522947,0.1279214,69311.0,69310.0,1.60708343]
[1717796523595,0.1279214,69311.0,69310.0,1.69704147]
[1717796523807,0.1279214,69311.0,69310.0,1.60708343]
[1717796524008,0.12100636,69311.0,69310.0,1.60708343]
[1717796524231,0.12792325,69311.0,69310.0,1.60708343]
[1717796524612,0.12791162,69311.0,69310.0,1.60708343]
[1717796525656,0.11999473,69311.0,69310.0,1.60108343]
[1717796526021,0.11999473,69311.0,69310.0,1.60808343]
[1717796526476,0.11899473,69311.0,69310.0,1.59908343]
[1717796526867,0.11899473,69311.0,69310.0,1.60908343]
[1717796528810,0.11899473,69311.0,69310.0,1.60208343]
[1717796529013,0.11899473,69311.0,69310.0,1.61108343]
[1717796529228,0.11899473,69311.0,69310.0,1.7562013]
[1717796529854,0.11899473,69311.0,69310.0,1.73454093]
[1717796529855,0.07571826,69311.0,69310.0,1.73454093]
[1717796530077,0.07571826,69311.0,69310.0,1.94013669]
[1717796530342,0.07571826,69311.0,69310.0,1.93113669]
[1717796530343,0.00086,69311.0,69310.0,1.93113669]
[1717796530553,0.00086,69311.0,69310.0,1.94513669]
[1717796530756,0.00086,69311.0,69310.0,1.95613669]
[1717796531268,0.00086,69311.0,69310.0,1.94513669]
[1717796531717,0.00086,69311.0,69310.0,1.94313669]
[1717796532170,0.00086,69311.0,69310.0,1.95713669]
[1717796533461,0.00086,69311.0,69310.0,1.74154093]
[1717796533649,0.00086,69311.0,69310.0,2.20903669]
[1717796533890,0.00086,69311.0,69310.0,1.99344093]
[1717796534092,0.00086,69311.0,69310.0,2.20903669]
[1717796534520,0.00086,69311.0,69310.0,1.99344093]
[1717796534733,0.00086,69311.0,69310.0,2.20903669]
[1717796534951,0.00086,69311.0,69310.0,1.99344093]
[1717796535181,0.00086,69311.0,69310.0,2.20903669]
[1717796535398,0.00086,69311.0,69310.0,1.99344093]
[1717796535849,0.00086,69311.0,69310.0,2.20903669]
[1717796536076,0.00086,69311.0,69310.0,1.99344093]
[1717796536294,0.00086,69311.0,69310.0,2.20903669]
[1717796536507,0.00086,69311.0,69310.0,1.99344093]
[1717796536709,0.00086,69311.0,69310.0,2.20903669]
[1717796536931,0.00086,69311.0,69310.0,1.99344093]
[1717796537135,0.00086,69311.0,69310.0,2.20903669]
[1717796537373,0.00086,69311.0,69310.0,1.99344093]
[1717796537578,0.00086,69311.0,69310.0,2.20903669]
[1717796537717,0.00086,69311.0,69310.0,1.99344093]
[1717796539602,0.00086,69311.0,69310.0,1.96744093]
[1717796539974,0.00086,69311.0,69310.0,1.98144093]
[1717796540178,0.00086,69311.0,69310.0,1.99544093]
[1717796540415,0.00086,69311.0,69310.0,1.98144093]
[1717796540620,0.00086,69311.0,69310.0,1.99544093]
[1717796540798,0.00086,69311.0,69310.0,1.98144093]
[1717796541629,0.00086,69311.0,69310.0,1.99544093]
[1717796543516,0.00086,69311.0,69310.0,2.59959469]
[1717796543936,0.00086,69311.0,69310.0,2.68983014]
[1717796544364,0.00086,69311.0,69310.0,2.66183014]
[1717796544538,0.00086,69311.0,69310.0,2.67583014]
[1717796544691,0.00086,69311.0,69310.0,2.68983014]
[1717796545866,0.00086,69311.0,69310.0,2.67583014]
[1717796546433,0.00086,69311.0,69310.0,2.68983014]
[1717796547241,0.00086,69311.0,69310.0,2.67583014]
[1717796547454,0.00086,69311.0,69310.0,2.58559469]
[1717796548146,0.00086,69311.0,69310.0,2.59959469]
[1717796548885,0.00086,69311.0,69310.0,2.59450242]
[1717796549133,0.00086,69311.0,69310.0,2.2202824]
[1717796549328,0.00086,69311.0,69310.0,2.60850207]
[1717796549536,0.00086,69311.0,69310.0,2.2342824]
[1717796549750,0.00086,69311.0,69310.0,2.60850225]
[1717796550155,0.00086,69311.0,69310.0,2.60850207]
[1717796551804,0.00086,69311.0,69310.0,2.63470739]
[1717796553026,9e-07,69311.0,69310.0,2.63470739]
[1717796553844,9e-07,69311.0,69310.0,2.69244239]
[1717796562454,9e-07,69311.0,69310.0,2.66623707]
[1717796562675,0.2349009,69311.0,69310.0,2.03839047]
[1717796562846,9e-07,69311.0,69310.0,2.30749047]
[1717796563257,9e-07,69311.0,69310.0,2.24975547]
[1717796564202,9e-07,69311.0,69310.0,2.27275547]
[1717796566600,9e-07,69311.0,69310.0,2.2727888]
[1717796567385,9e-07,69311.0,69310.0,2.2036888]
[1717796567609,9e-07,69311.0,69310.0,2.2727888]
[1717796571598,0.0795009,69311.0,69310.0,2.2727888]
[1717796572460,0.0795009,69311.0,69310.0,2.0527888]
[1717796572698,9e-07,69311.0,69310.0,2.6017888]
[1717796573444,9e-07,69311.0,69310.0,2.69202342]
[1717796574277,9e-07,69311.0,69310.0,2.49202342]
[1717796574485,9e-07,69311.0,69310.0,2.47202342]
[1717796574690,9e-07,69311.0,69310.0,2.6017888]
[1717796574890,9e-07,69311.0,69310.0,2.3817888]
[1717796575347,9e-07,69311.0,69310.0,2.69202485]
[1717796582191,9e-07,69311.0,69310.0,2.62292485]
[1717796582357,9e-07,69311.0,69310.0,2.69202485]
[1717796582561,9e-07,69311.0,69310.0,2.62292485]
[1717796582796,9e-07,69311.0,69310.0,2.69202485]
[1717796584107,9e-07,69311.0,69310.0,2.69200325]
[1717796587304,9e-07,69311.0,69310.0,2.62290325]
[1717796587506,9e-07,69311.0,69310.0,2.69200325]
[1717796590397,9e-07,69311.0,69310.0,2.99138911]
[1717796593862,9e-07,69311.0,69310.0,3.01068494]
[1717796595287,9e-07,69311.0,69310.0,2.63645771]
[1717796595523,9e-07,69311.0,69310.0,3.01068516]
[1717796603520,9e-07,69311.0,69310.0,3.01068383]
[1717796604731,9e-07,69311.0,69310.0,2.99668383]
[1717796604926,9e-07,69311.0,69310.0,2.98268383]
[1717796605394,9e-07,69311.0,69310.0,2.99668383]
[1717796605809,9e-07,69311.0,69310.0,2.98268383]
[1717796606164,9e-07,69311.0,69310.0,3.01068383]
[1717796609108,9e-07,69311.0,69310.0,2.94158383]
[1717796609554,9e-07,69311.0,69310.0,3.01068383]
[1717796610608,9e-07,69311.0,69310.0,2.99668383]
[1717796610805,9e-07,69311.0,69310.0,3.01068383]
[1717796611186,9e-07,69311.0,69310.0,2.99668383]
[1717796611610,9e-07,69311.0,69310.0,3.01068383]
[1717796612655,9e-07,69311.0,69310.0,3.01068394]
[1717796613110,9e-07,69311.0,69310.0,2.94158394]
[1717796613468,9e-07,69311.0,69310.0,3.01068394]
[1717796616357,9e-07,69311.0,69310.0,3.14408973]
[1717796616474,9e-07,69311.0,69310.0,3.38068973]
[1717796616884,9e-07,69311.0,69310.0,3.0064635]
[1717796617083,9e-07,69311.0,69310.0,3.42396509]
[1717796617286,9e-07,69311.0,69310.0,3.42397341]
[1717796618901,9e-07,69311.0,69310.0,3.3806783]
[1717796621886,9e-07,69311.0,69310.0,3.42397089]
[1717796623324,9e-07,69311.0,69310.0,3.3806783]
[1717796623502,9e-07,69311.0,69310.0,3.42395492]
[1717796623659,9e-07,69311.0,69310.0,3.3806783]
[1717796624299,9e-07,69311.0,69310.0,3.42395551]
[1717796627629,9e-07,69311.0,69310.0,3.18735551]
[1717796627846,0.0797009,69311.0,69310.0,3.14406864]
[1717796628036,0.0797009,69311.0,69310.0,3.1229965]
[1717796628273,0.0797009,69311.0,69310.0,3.03276045]
[1717796628473,0.0797009,69311.0,69310.0,2.82931341]
[1717796628713,0.0797009,69311.0,69310.0,2.52993721]
[1717796628917,0.0797009,69311.0,69310.0,2.82933856]
[1717796629109,0.0797009,69311.0,69310.0,3.0327856]
[1717796629926,0.0797009,69311.0,69310.0,3.12302319]
[1717796630267,0.0797009,69311.0,69310.0,3.12300905]
[1717796630695,9e-07,69311.0,69310.0,3.06046394]
[1717796630918,9e-07,69311.0,69310.0,3.12956394]
[1717796631123,9e-07,69311.0,69310.0,3.06046394]
[1717796631393,9e-07,69311.0,69310.0,3.03932635]
[1717796632303,9e-07,69311.0,69310.0,3.03958605]
[1717796632715,9e-07,69311.0,69310.0,2.82933048]
[1717796632916,9e-07,69311.0,69310.0,3.03958605]
[1717796633952,9e-07,69311.0,69310.0,2.82933048]
[1717796634128,9e-07,69311.0,69310.0,3.03958605]
[1717796634332,9e-07,69311.0,69310.0,2.82933048]
[1717796634537,9e-07,69311.0,69310.0,3.03958605]
[1717796634743,9e-07,69311.0,69310.0,2.82933048]
[1717796635067,9e-07,69311.0,69310.0,3.03958587]
[1717796635268,9e-07,69311.0,69310.0,2.82932923]
[1717796635470,9e-07,69311.0,69310.0,3.03958587]
[1717796635676,9e-07,69311.0,69310.0,2.82932923]
[1717796636058,9e-07,69311.0,69310.0,3.04008562]
[1717796636260,9e-07,69311.0,69310.0,2.82932769]
[1717796636515,9e-07,69311.0,69310.0,3.04008562]
[1717796636815,9e-07,69311.0,69310.0,2.81532769]
[1717796637003,9e-07,69311.0,69310.0,3.02608562]
[1717796637158,9e-07,69311.0,69310.0,2.82932769]
[1717796637367,9e-07,69311.0,69310.0,3.04008562]
[1717796637570,9e-07,69311.0,69310.0,2.81532769]
[1717796637769,9e-07,69311.0,69310.0,3.02608562]
[1717796637972,9e-07,69311.0,69310.0,2.82932769]
[1717796638214,9e-07,69311.0,69310.0,3.04008562]
[1717796638397,9e-07,69311.0,69310.0,2.82932769]
[1717796638601,9e-07,69311.0,69310.0,3.04008562]
[1717796638941,9e-07,69311.0,69310.0,2.82932769]
[1717796639182,9e-07,69311.0,69310.0,3.04008562]
[1717796639397,9e-07,69311.0,69310.0,2.82932769]
[1717796639628,9e-07,69311.0,69310.0,3.04008562]
[1717796639833,9e-07,69311.0,69310.0,2.82932769]
[1717796640020,9e-07,69311.0,69310.0,3.04008562]
[1717796640302,9e-07,69311.0,69310.0,2.82932769]
[1717796640725,0.0796009,69311.0,69310.0,2.82932769]
[1717796640968,0.0796009,69311.0,69310.0,2.76022769]
[1717796641178,0.0796009,69311.0,69310.0,2.82932769]
[1717796641581,0.0796009,69311.0,69310.0,3.04008562]
[1717796641790,0.0796009,69311.0,69310.0,2.82932769]
[1717796641791,0.2423009,69311.0,69310.0,2.82932769]
[1717796641999,0.2423009,69311.0,69310.0,3.04008562]
[1717796642183,0.2423009,69311.0,69310.0,3.04009516]
[1717796642552,0.2423009,69311.0,69310.0,2.82933723]
[1717796642757,9e-07,69311.0,69310.0,3.04009516]
[1717796642949,9e-07,69311.0,69310.0,2.82933723]
[1717796643153,0.2423009,69311.0,69310.0,3.04009516]
[1717796643323,0.2423009,69311.0,69310.0,2.82933723]
[1717796643742,0.2423009,69311.0,69310.0,3.04009516]
[1717796644152,0.2423009,69311.0,69310.0,2.82933723]
[1717796644350,0.2423009,69311.0,69310.0,3.04009516]
[1717796645330,9e-07,69311.0,69310.0,3.04009516]
[1717796645528,9e-07,69311.0,69310.0,2.82933723]
[1717796645686,9e-07,69311.0,69310.0,3.04009516]
[1717796645887,9e-07,69311.0,69310.0,2.52994048]
[1717796646121,9e-07,69311.0,69310.0,2.74069841]
[1717796646369,9e-07,69311.0,69310.0,3.04009379]
[1717796646718,9e-07,69311.0,69310.0,2.82933586]
[1717796647270,9e-07,69311.0,69310.0,3.04009379]
[1717796647416,9e-07,69311.0,69310.0,2.82933586]
[1717796647648,9e-07,69311.0,69310.0,3.04009379]
[1717796647875,9e-07,69311.0,69310.0,2.82933586]
[1717796648026,9e-07,69311.0,69310.0,3.04009379]
[1717796648226,9e-07,69311.0,69310.0,2.82933586]
[1717796648695,9e-07,69311.0,69310.0,3.04173722]
[1717796649024,9e-07,69311.0,69310.0,2.82933348]
[1717796649184,9e-07,69311.0,69310.0,3.04173722]
[1717796650166,9e-07,69311.0,69310.0,2.82933348]
[1717796650602,0.0827009,69311.0,69310.0,2.76023348]
[1717796650807,0.0827009,69311.0,69310.0,2.5299381]
[1717796651030,0.1575569,69311.0,69310.0,2.55156845]
[1717796651227,0.0827009,69311.0,69310.0,2.4608381]
[1717796651506,0.0827009,69311.0,69310.0,2.55156845]
[1717796651830,0.0827009,69311.0,69310.0,2.85098115]
[1717796652264,0.0827009,69311.0,69310.0,2.8293508]
[1717796654319,0.0827009,69311.0,69310.0,2.82935953]
[1717796655906,0.0827009,69311.0,69310.0,2.76025953]
[1717796656078,0.0827009,69311.0,69310.0,2.82935953]
[1717796656283,0.0827009,69311.0,69310.0,2.61514166]
[1717796656530,0.0827009,69311.0,69310.0,2.68424166]
[1717796657034,0.0827009,69311.0,69310.0,2.53453642]
[1717796657238,0.0827009,69311.0,69310.0,2.68424263]
[1717796658422,0.0827009,69311.0,69310.0,2.61514263]
[1717796658606,0.0827009,69311.0,69310.0,2.39568463]
[1717796659487,0.0827009,69311.0,69310.0,2.60885017]
[1717796659684,9e-07,69311.0,69310.0,2.39568463]
[1717796659931,9e-07,69311.0,69310.0,2.5408025]
[1717796660883,9e-07,69311.0,69310.0,2.75396804]
[1717796661083,9e-07,69311.0,69310.0,2.5408025]
[1717796661285,9e-07,69311.0,69310.0,2.75396804]
[1717796661485,9e-07,69311.0,69310.0,2.5408025]
[1717796661826,9e-07,69311.0,69310.0,2.75396804]
[1717796662044,9e-07,69311.0,69310.0,2.5408025]
[1717796662384,9e-07,69311.0,69310.0,2.75396804]
[1717796662586,9e-07,69311.0,69310.0,2.5408025]
[1717796662798,0.0774009,69311.0,69310.0,2.75396804]
[1717796663028,0.0774009,69311.0,69310.0,2.5408025]
[1717796663228,0.0774009,69311.0,69310.0,2.75396804]
[1717796663439,0.0774009,69311.0,69310.0,2.39109629]
[1717796663619,0.0774009,69311.0,69310.0,2.39568253]
[1717796663811,0.0774009,69311.0,69310.0,2.60948607]
[1717796664134,0.0774009,69311.0,69310.0,2.39568253]
[1717796664342,0.0774009,69311.0,69310.0,2.60948607]
[1717796664565,0.0774009,69311.0,69310.0,2.39568253]
[1717796664773,0.0774009,69311.0,69310.0,2.60948607]
[1717796664976,0.0774009,69311.0,69310.0,2.39568253]
[1717796665202,0.0774009,69311.0,69310.0,2.54038607]
[1717796665413,0.0774009,69311.0,69310.0,2.39568253]
[1717796665627,0.0774009,69311.0,69310.0,2.60948607]
[1717796665867,0.0774009,69311.0,69310.0,2.39568253]
[1717796666065,0.0774009,69311.0,69310.0,2.60948607]
[1717796666351,0.0774009,69311.0,69310.0,2.39568253]
[1717796666580,0.0774009,69311.0,69310.0,2.60948607]
[1717796666728,0.0774009,69311.0,69310.0,2.39568253]
[1717796666933,0.0774009,69311.0,69310.0,2.60948607]
[1717796667133,0.0774009,69311.0,69310.0,2.39568253]
[1717796667301,0.0774009,69311.0,69310.0,2.60948607]
[1717796667502,0.0774009,69311.0,69310.0,2.39568253]
[1717796667941,0.0774009,69311.0,69310.0,2.60948607]
[1717796668143,0.0774009,69311.0,69310.0,2.39568253]
[1717796668361,9e-07,69311.0,69310.0,2.60948607]
[1717796668524,9e-07,69311.0,69310.0,2.32658253]
[1717796668729,9e-07,69311.0,69310.0,2.60948607]
[1717796668931,9e-07,69311.0,69310.0,2.39568253]
[1717796669378,9e-07,69311.0,69310.0,2.75460394]
[1717796669379,0.2361009,69311.0,69310.0,2.75460394]
[1717796669586,0.2361009,69311.0,69310.0,2.5408004]
[1717796669781,0.2361009,69311.0,69310.0,2.75460394]
[1717796669992,0.2361009,69311.0,69310.0,2.5408004]
[1717796670189,0.2361009,69311.0,69310.0,2.75460394]
[1717796670391,0.2361009,69311.0,69310.0,2.39568253]
[1717796670622,0.0815009,69311.0,69310.0,2.39568253]
[1717796670845,0.0815009,69311.0,69310.0,2.60948607]
[1717796671045,0.0815009,69311.0,69310.0,2.39568253]
[1717796671249,0.0815009,69311.0,69310.0,2.60948607]
[1717796671445,0.0815009,69311.0,69310.0,2.39568253]
[1717796671977,0.0815009,69311.0,69310.0,2.60948607]
[1717796672149,0.0815009,69311.0,69310.0,2.39568253]
[1717796672347,0.0815009,69311.0,69310.0,2.60948607]
[1717796672495,0.0815009,69311.0,69310.0,2.39568253]
[1717796672699,0.0815009,69311.0,69310.0,2.60948607]
[1717796672902,9e-07,69311.0,69310.0,2.39568253]
[1717796673150,9e-07,69311.0,69310.0,2.60948607]
[1717796673372,9e-07,69311.0,69310.0,2.39568253]
[1717796673526,9e-07,69311.0,69310.0,2.60948607]
[1717796673750,9e-07,69311.0,69310.0,2.39568253]
[1717796673939,0.0760009,69311.0,69310.0,2.60948607]
[1717796674138,0.0760009,69311.0,69310.0,2.39568253]
[1717796674370,0.0760009,69311.0,69310.0,2.60948607]
[1717796674578,0.0760009,69311.0,69310.0,2.39568253]
[1717796674779,0.0760009,69311.0,69310.0,2.60948607]
[1717796674978,0.0760009,69311.0,69310.0,2.39568253]
[1717796675202,0.0760009,69311.0,69310.0,2.60948607]
[1717796675375,0.0760009,69311.0,69310.0,2.71876505]
[1717796676001,0.0760009,69311.0,69310.0,2.54038607]
[1717796676233,0.0760009,69311.0,69310.0,2.89804407]
[1717796676451,0.0760009,69311.0,69310.0,2.53453642]
[1717796676630,0.0760009,69311.0,69310.0,2.89821806]
[1717796676812,9e-07,69311.0,69310.0,2.89821806]
[1717796677189,9e-07,69311.0,69310.0,2.82911806]
[1717796677391,0.2308009,69311.0,69310.0,2.89821806]
[1717796678226,0.2308009,69311.0,69310.0,2.8982149]
[1717796678876,0.2308009,69311.0,69310.0,2.89868144]
[1717796679457,0.2308009,69311.0,69310.0,2.91866643]
[1717796680284,0.2308009,69311.0,69310.0,2.91864099]
[1717796680615,0.2308009,69311.0,69310.0,2.898656]
[1717796683303,9e-07,69311.0,69310.0,2.898656]
[1717796683971,0.2308009,69311.0,69310.0,2.898656]
[1717796687105,9e-07,69311.0,69310.0,2.898656]
[1717796693755,0.07485319,69311.0,69310.0,2.898656]
[1717796693942,9e-07,69311.0,69310.0,2.91449932]
[1717796694315,0.07485361,69311.0,69310.0,2.91449932]
[1717796694946,0.07485361,69311.0,69310.0,2.86061432]
[1717796695310,9e-07,69311.0,69310.0,2.844771]
[1717796697513,9e-07,69311.0,69310.0,2.48064826]
[1717796697695,9e-07,69311.0,69310.0,2.85490994]
[1717796701332,0.2341009,69311.0,69310.0,2.85490994]
[1717796703695,0.2341009,69311.0,69310.0,2.85491176]
[1717796704064,0.2341009,69311.0,69310.0,2.85491244]
[1717796704703,0.0811009,69311.0,69310.0,2.85491244]
[1717796704904,0.15595344,69311.0,69310.0,2.85491244]
[1717796705111,0.07485344,69311.0,69310.0,2.85491244]
[1717796705815,0.07485411,69311.0,69310.0,2.85491614]
[1717796706035,9e-07,69311.0,69310.0,2.85491614]
[1717796707552,9e-07,69311.0,69310.0,3.00003401]
[1717796708621,9e-07,69311.0,69310.0,2.62576795]
[1717796708826,9e-07,69311.0,69310.0,3.00002835]
[1717796709033,9e-07,69311.0,69310.0,2.85491048]
[1717796715751,9e-07,69311.0,69310.0,2.93131048]
[1717796716128,0.1567009,69311.0,69310.0,2.85491048]
[1717796716325,0.2378009,69311.0,69310.0,2.85491048]
[1717796716731,9e-07,69311.0,69310.0,2.85491048]
[1717796717179,9e-07,69311.0,69310.0,2.89726313]
[1717796719270,9e-07,69311.0,69310.0,2.85491048]
[1717796719828,9e-07,69311.0,69310.0,2.78581048]
[1717796719987,9e-07,69311.0,69310.0,2.85491048]
[1717796720188,9e-07,69311.0,69310.0,2.78581048]
[1717796720394,9e-07,69311.0,69310.0,2.85491048]
[1717796721591,9e-07,69311.0,69310.0,2.78581048]
[1717796721794,9e-07,69311.0,69310.0,2.85491048]
[1717796724002,0.07485417,69311.0,69310.0,2.85491048]
[1717796724404,0.07485417,69311.0,69310.0,2.78581048]
[1717796724574,0.07485417,69311.0,69310.0,2.85491048]
[1717796725809,0.07485417,69311.0,69310.0,2.63409912]
[1717796726033,0.07485417,69311.0,69310.0,2.85492047]
[1717796726233,0.23535417,69311.0,69310.0,2.85492047]
[1717796726456,0.31185417,69311.0,69310.0,2.85492047]
[1717796726649,0.31185417,69311.0,69310.0,2.65492047]
[1717796726968,0.15135417,69311.0,69310.0,2.65492047]
[1717796727158,0.07485417,69311.0,69310.0,2.65492047]
[1717796727367,0.07485417,69311.0,69310.0,2.85492047]
[1717796727783,0.07485417,69311.0,69310.0,3.10082047]
[1717796727982,0.07485417,69311.0,69310.0,2.93752047]
[1717796728583,0.07485417,69311.0,69310.0,2.85492047]
[1717796731873,0.31295417,69311.0,69310.0,1.82294112]
[1717796732074,0.31295417,69311.0,69310.0,1.69204112]
[1717796732364,0.37667548,69311.0,69310.0,1.69204112]
[1717796732721,0.33337046,69311.0,69310.0,1.48914568]
[1717796733068,0.33337046,69311.0,69310.0,1.71370192]
[1717796733246,0.37666704,69311.0,69310.0,1.47650056]
[1717796733479,0.33337046,69311.0,69310.0,1.47650056]
[1717796733613,0.09527046,69311.0,69310.0,1.47650056]
[1717796733811,0.09527046,69311.0,69310.0,1.49050056]
[1717796734405,0.33337046,69311.0,69310.0,1.49050056]
[1717796734782,0.33337046,69311.0,69310.0,1.46250056]
[1717796735152,0.33337046,69311.0,69310.0,1.49050056]
[1717796735358,0.37666328,69311.0,69310.0,1.47650056]
[1717796735567,0.37666328,69311.0,69310.0,1.46250056]
[1717796735766,0.37666328,69311.0,69310.0,1.47650056]
[1717796736347,0.37666328,69311.0,69310.0,1.40740056]
[1717796736532,0.37666328,69311.0,69310.0,1.47650056]
[1717796737483,0.35624699,69311.0,69310.0,1.42140056]
[1717796737855,0.35624699,69311.0,69310.0,1.49050056]
[1717796738206,0.31296218,69311.0,69310.0,1.49050056]
[1717796739587,0.3321418,69311.0,69310.0,1.49050056]